Cogmind - Beta 11 X9 @@@ ROGUE MODE // 2021.12.25 @ 04:49:50 // Winter2021/Sauler Player: PhenomPhear Result: Destroyed by Elf with Beamcaster Performance ------------- Evolutions (5) 2500 Regions Visited (19) 3800 Robots Destroyed (167) 835 Value Destroyed (4965) 4965 Prototype IDs (42) 840 Alien Tech Used (0) 0 Bonus (5149) 5149 TOTAL SCORE: 18089 Bonus ------- High Alert Combat Kills 339 Follower Combat Kills 331 Entered Garrisons 1200 Used RIF Installer 3000 Aligned with FarCom 300 Friendly Fire -21 Cogmind --------- Core Integrity 0/1000 Matter 220/300 Energy 23/100 System Corruption 0% Temperature Warm (147) Movement Core (50) Location -5/Factory Parts ------- > --- POWER (2) -------- (None) > --- PROPULSION (6) --- (None) > --- UTILITY (6) ------ Experimental Coolant Injector > --- WEAPON (3) ------- (None) > --- INVENTORY (5) ---- Light Fission Core Relay Coupler [NC] (39) Relay Coupler [Sentry] (31) Improved Arc Projector Heavy Shock Bomb Launcher Peak State ------------ > --- POWER ------------ Light Fission Core Light Fission Core > --- PROPULSION ------- Gravmag Array Gravmag Array Combat Gravmag System Combat Gravmag System > --- UTILITY ---------- Medium Storage Unit Target Analyzer Improved Core Analyzer Precision Matter Filter Improved Focal Shield Relay Coupler [Grunt] > --- WEAPON ----------- Improved Arc Projector Disruptor Cannon KE Penetrator > --- INVENTORY -------- Light Fission Core Advanced Melee Analysis Suite Relay Coupler [NC] Relay Coupler [Sentry] Mass Driver Heavy Shock Bomb Launcher Kinetic Spear [Rating: 89] Favorites ----------- Power Heavy Ion Engine Engine Heavy Ion Engine Power Core Light Nuclear Core Propulsion Light Treads Treads Light Treads Wheel Compact Wheel Hover Unit Gravmag Array Flight Unit Xenon Bombardment Thruster Utility High-capacity Storage Unit Device Cooling System Storage High-capacity Storage Unit Processor Improved Core Analyzer Hackware Relay Coupler [Grunt] Protection Hardened Light Armor Plating Weapon Precision Assault Rifle Energy Gun Beamcaster Energy Cannon Advanced Beam Cannon Ballistic Gun Precision Assault Rifle Ballistic Cannon Light Cannon Launcher Rocket Launcher Piercing Weapon Kinetic Spear Build | -11 -10 -10 -9 -9 -9 -8 -8 -8 -8 -8 -7 -7 -7 -7 -6 -6 -6 -6 -5 ------- Run | Scr Mat Min Mat Min Exi Min Mat Gar Mat Gar Fac Gar Fac Gar Fac Gar Fac Gar Fac Slots Evolved 10 | . . . 2 . . . 2 . . . 2 . . . 2 . . . 2 Power 1 | . . . . . . . . . . . . . . . 1 . . . . Propulsion 4 | . . . . . . . 1 . . . 2 . . . 1 . . . . Utility 4 | . . . 1 . . . 1 . . . . . . . . . . . 2 Weapon 1 | . . . 1 . . . . . . . . . . . . . . . . Parts Attached 159 | 6 9 8 29 2 1 . 32 1 13 2 11 2 . . 14 2 . 1 26 Power 10 | 1 1 1 2 . . . 1 . . . 1 . . . 1 . . . 2 Engine 7 | 1 1 . 2 . . . 1 . . . 1 . . . 1 . . . . Core 3 | . . 1 . . . . . . . . . . . . . . . . 2 Reactor . | . . . . . . . . . . . . . . . . . . . . Propulsion 45 | 2 1 2 7 . . . 9 . 1 . 5 . . . 9 . . 1 8 Treads 16 | 2 1 2 6 . . . 4 . 1 . . . . . . . . . . Leg . | . . . . . . . . . . . . . . . . . . . . Wheel 5 | . . . . . . . 5 . . . . . . . . . . . . Hover 8 | . . . . . . . . . . . . . . . . . . . 8 Flight 16 | . . . 1 . . . . . . . 5 . . . 9 . . 1 . Utility 40 | 1 3 1 5 . . . 7 . 8 . 5 . . . 2 . . . 8 Device 14 | . . 1 2 . . . 2 . 1 . 2 . . . 2 . . . 4 Storage 6 | 1 1 . . . . . 1 . 1 . . . . . . . . . 2 Processor 3 | . . . . . . . . . . . 1 . . . . . . . 2 Hackware 6 | . . . . . . . 2 . 3 . 1 . . . . . . . . Protection 11 | . 2 . 3 . . . 2 . 3 . 1 . . . . . . . . Artifact . | . . . . . . . . . . . . . . . . . . . . Weapon 64 | 2 4 4 15 2 1 . 15 1 4 2 . 2 . . 2 2 . . 8 Energy Gun 13 | 1 . . 1 1 1 . 6 . 1 . . . . . . . . . 2 Energy Cannon 15 | . 1 . 8 . . . 5 . . . . . . . . . . . 1 Ballistic Gun 18 | 1 . 4 5 . . . . . 3 1 . 1 . . 1 1 . . 1 Ballistic Cannon 6 | . 3 . . . . . . . . . . . . . . . . . 3 Launcher 11 | . . . 1 1 . . 4 1 . 1 . 1 . . 1 1 . . . Special Weapon . | . . . . . . . . . . . . . . . . . . . . Impact Weapon . | . . . . . . . . . . . . . . . . . . . . Slashing Weapon . | . . . . . . . . . . . . . . . . . . . . Piercing Weapon 1 | . . . . . . . . . . . . . . . . . . . 1 Special Melee Weapon . | . . . . . . . . . . . . . . . . . . . . Unidentified Prototypes 10 | . . . 2 . . . . . 1 . . . . . 2 . . . 5 Parts Lost 37 | . 4 2 . . . . 3 . . . . . . . . 4 . 8 16 Power 6 | . 1 . . . . . 1 . . . . . . . . 2 . . 2 Propulsion 10 | . . 1 . . . . 1 . . . . . . . . . . 4 4 Utility 11 | . 1 1 . . . . 1 . . . . . . . . 1 . 2 5 Weapon 10 | . 2 . . . . . . . . . . . . . . 1 . 2 5 Highest Loss Streak 15 | . 2 1 . . . . 1 . . . . . . . . 2 . 6 15 Average Slot Usage (%) 93 | . 96 99 99 100 93 88 89 100 99 100 96 100 100 100 95 87 73 51 54 Engine 8 | . 14 . 6 11 11 11 9 9 9 9 5 7 7 7 8 6 . . . Core 2 | . . 13 4 . . . . . . . . . . . . . . . 5 Treads 19 | . 28 27 21 22 22 22 17 18 18 18 . . . . . . . . . Wheel 2 | . . . . . . . 9 9 9 9 . . . . . . . . . Flight 3 | . . . . . . . . . . . 38 38 38 38 40 40 40 29 . Device 10 | . . 13 10 11 11 11 17 18 15 9 9 15 15 15 13 13 13 8 2 Storage 10 | . 14 14 11 11 11 11 9 9 9 9 1 . . . . . . . 4 Protection 8 | . 9 . 10 11 11 11 9 9 11 18 11 7 7 7 6 4 . . . Energy Gun 5 | . 1 . 1 10 11 11 10 22 11 . . . . . . . . . 4 Energy Cannon 3 | . 2 . 11 . . . 5 . . . . . . . . . . . 2 Ballistic Gun 11 | . 1 27 19 11 5 . . . 15 27 23 21 23 23 19 13 13 6 1 Ballistic Cannon 3 | . 23 . . . . . . . . . . . . . . . . . 1 Launcher 2 | . . . . 10 11 11 2 4 . . . 1 . . . 1 . . . Naked Turns . | . . . . . . . . . . . . . . . . . . . . Heaviest Build 110 | 11 55 55 68 67 67 67 110 104 110 110 27 27 25 25 30 30 10 10 52 Greatest Support 68 | 40 40 40 43 43 43 43 32 40 16 16 29 29 29 29 35 34 16 34 68 Greatest Overweight (x) 6 | 2 1 1 2 1 1 1 6 6 6 6 . . . . . . . . 5 Average Overweight (x) 1 | . . 1 1 1 1 1 5 5 6 6 . . . . . . . . . Largest Inventory Capacity 25 | 8 20 20 20 20 20 20 25 25 25 25 25 5 5 5 5 5 5 5 10 Average Capacity 19 | 7 19 20 20 20 20 20 24 25 25 25 9 5 5 5 5 5 5 5 8 Most Carried 25 | 8 20 20 20 20 20 20 25 25 25 24 25 5 5 5 5 5 4 4 8 Average Carried 17 | 2 14 19 19 19 19 20 23 23 24 24 8 5 5 5 4 4 4 3 4 Final Capacity 25 | 8 20 20 20 20 20 20 25 25 25 25 5 5 5 5 5 5 5 5 5 Final Carried 25 | 6 20 20 20 20 20 20 22 25 25 24 5 5 5 5 5 4 4 3 5 Class Distribution -------------------- 39% | Mutant 19% | Skirmisher 14% | Tank 8% | Sprinter 8% | Scavenger-Mutant 7% | Scavenger-Tank Dominant Class ---------------- Mutant | -10/Materials Scavenger-Mutant | -10/Mines Tank | -9/Materials Mutant | -9/Mines Mutant | -9/Exiles Mutant | -8/Mines Skirmisher | -8/Materials Mutant | -8/Garrison Skirmisher | -8/Materials Tank | -8/Garrison Tank | -7/Factory Sprinter | -7/Garrison Sprinter | -7/Factory Sprinter | -7/Garrison Sprinter | -6/Factory Sprinter | -6/Garrison Sprinter | -6/Factory Sprinter | -6/Garrison Mutant | -5/Factory Resources | -11 -10 -10 -9 -9 -9 -8 -8 -8 -8 -8 -7 -7 -7 -7 -6 -6 -6 -6 -5 ----------- Run | Scr Mat Min Mat Min Exi Min Mat Gar Mat Gar Fac Gar Fac Gar Fac Gar Fac Gar Fac Matter Collected 3459 | 235 518 312 790 56 . 8 342 23 437 41 148 . . . 89 82 192 . 186 Remotely . | . . . . . . . . . . . . . . . . . . . . Salvage Created 5680 | . 655 180 1360 128 . 200 1890 81 701 136 . . . . 84 252 . . 13 Parts 343 | . 38 20 86 8 . 11 106 2 36 15 . . . . 7 11 . . 3 Haulers Intercepted 10 | . 2 . 3 . . . 4 . 1 . . . . . . . . . . Recyclers Shooed . | . . . . . . . . . . . . . . . . . . . . Parts Field Recycled . | . . . . . . . . . . . . . . . . . . . . Retrieved Matter . | . . . . . . . . . . . . . . . . . . . . Parts Self-Destructed . | . . . . . . . . . . . . . . . . . . . . Prevented . | . . . . . . . . . . . . . . . . . . . . Kills | -11 -10 -10 -9 -9 -9 -8 -8 -8 -8 -8 -7 -7 -7 -7 -6 -6 -6 -6 -5 ------- Run | Scr Mat Min Mat Min Exi Min Mat Gar Mat Gar Fac Gar Fac Gar Fac Gar Fac Gar Fac Combat Hostiles Destroyed 124 | . 16 6 27 4 . 4 29 3 9 8 . . . . 4 13 . . 1 Guns 62 | . . 5 12 4 . 4 22 . 8 4 . . . . . 3 . . . Cannons 33 | . 16 1 13 . . . 2 . . . . . . . . . . . 1 AOE 29 | . . . 2 . . . 5 3 1 4 . . . . 4 10 . . . Classes Destroyed 14 | . 6 . 4 1 . 1 2 . . . . . . . . . . . . Worker 10 | . 3 1 2 1 . . 1 . 1 . . . . . 1 . . . . Builder 1 | . . . . . . . 1 . . . . . . . . . . . . Hauler 10 | . 2 . 3 . . . 4 . 1 . . . . . . . . . . Recycler 8 | . 3 . 1 . . . 2 . 2 . . . . . . . . . . Mechanic 1 | . . . . . . . 1 . . . . . . . . . . . . Operator 6 | . . . 3 . . . 1 . 2 . . . . . . . . . . Watcher 9 | . 2 . 2 . . . 5 . . . . . . . . . . . . Swarmer 35 | . 5 3 7 . . . . . . 7 . . . . 4 8 . . 1 Grunt 60 | . 11 3 11 2 . 3 19 3 5 . . . . . . 3 . . . Brawler 1 | . . . 1 . . . . . . . . . . . . . . . . Duelist 2 | . . . 1 . . . 1 . . . . . . . . . . . . Sentry 19 | . . . 7 . . . 8 . 3 1 . . . . . . . . . Hunter 5 | . . . . . . 1 1 . 1 . . . . . . 2 . . . Assembled 2 | . . . . 2 . . . . . . . . . . . . . . . Best Kill Streak 12 | . 5 3 4 2 . 3 9 3 3 8 . . . . 4 12 . . 1 Combat Bots Only 12 | . 4 3 4 2 . 3 9 3 2 8 . . . . 4 12 . . 1 Max Kills in Single Turn 4 | . 2 2 2 1 . 1 4 3 2 4 . . . . 3 2 . . 1 Gunslinging 1 | . . 1 . . . . . . . 1 . . . . . . . . . Exploded 4 | . . . 2 . . . 3 3 1 4 . . . . 3 2 . . . Melee . | . . . . . . . . . . . . . . . . . . . . Uniques/NPCs Destroyed . | . . . . . . . . . . . . . . . . . . . . Combat | -11 -10 -10 -9 -9 -9 -8 -8 -8 -8 -8 -7 -7 -7 -7 -6 -6 -6 -6 -5 -------- Run | Scr Mat Min Mat Min Exi Min Mat Gar Mat Gar Fac Gar Fac Gar Fac Gar Fac Gar Fac Damage Taken 8019 | . 814 293 777 198 . 109 661 18 495 103 . 103 . . 144 628 27 379 3270 Core 1680 | . 113 . 67 26 . 16 76 . 15 7 . 38 . . 33 142 11 122 1014 Absorbed by Shields 216 | . . . . . . . . . . . . . . . . 183 . 33 . Core Remaining (%) 77 | 100 . 54 . . . 72 . . . 82 . . . 94 . . . 63 . Volleys Fired 273 | . 55 16 79 9 . . 43 3 28 5 . . . . 4 22 . . 9 Largest 3 | . 2 2 3 3 . . 3 1 3 3 . . . . 3 2 . . 3 Hottest 211 | . 103 103 211 166 . . 211 33 175 84 . . . . 84 56 . . 203 Shots Fired 711 | . 109 29 233 20 . 20 143 3 84 13 . . . . 6 32 . . 19 Gun 447 | . . 20 158 17 . 20 104 . 84 12 . . . . 3 20 . . 9 Cannon 234 | . 109 9 74 3 . . 29 . . . . . . . . . . . 10 Launcher 30 | . . . 1 . . . 10 3 . 1 . . . . 3 12 . . . Special . | . . . . . . . . . . . . . . . . . . . . Kinetic 382 | . 103 25 152 9 . . . . 51 12 . . . . 3 20 . . 7 Thermal 287 | . 6 4 80 11 . 20 133 . 33 . . . . . . . . . . Explosive 30 | . . . 1 . . . 10 3 . 1 . . . . 3 12 . . . Electromagnetic 12 | . . . . . . . . . . . . . . . . . . . 12 Robot Hit Streak 18 | . 6 7 10 6 . 17 17 4 8 12 . . . . 2 9 . . 18 Robot Miss Streak 4 | . 3 2 4 2 . 1 3 . 3 1 . . . . . 3 . . 3 Penetration Max . | . . . . . . . . . . . . . . . . . . . . Secondary Targets 6 | . . 1 . . . . . . 2 2 . . . . . 1 . . . Max Gunslinging Chain 1 | . . 1 . . . . . . 1 1 . . . . . 1 . . . Autonomous 119 | . . . . . . 20 99 . . . . . . . . . . . . Shots Hit Robots 435 | . 62 17 123 13 . 19 107 3 51 9 . . . . 1 15 . . 15 Core Hits 254 | . 26 13 55 8 . 7 61 7 26 8 . . . . 5 29 . . 9 Critical Kills 1 | . . . 1 . . . . . . . . . . . . . . . . Critical Parts Destroyed 1 | . . . 1 . . . . . . . . . . . . . . . . Critical Strikes 7 | . 3 . 3 . . . . . 1 . . . . . . . . . . Burn 2 | . . . 1 . . . . . 1 . . . . . . . . . . Destroy 2 | . . . 2 . . . . . . . . . . . . . . . . Blast 3 | . 3 . . . . . . . . . . . . . . . . . . Melee Attacks 3 | . . . . . . . . . . . . . . . . . . . 3 Impact . | . . . . . . . . . . . . . . . . . . . . Slashing . | . . . . . . . . . . . . . . . . . . . . Piercing 3 | . . . . . . . . . . . . . . . . . . . 3 Sneak Attacks . | . . . . . . . . . . . . . . . . . . . . Combat Hostiles . | . . . . . . . . . . . . . . . . . . . . Follow-up Attacks . | . . . . . . . . . . . . . . . . . . . . Damage Inflicted 11688 | . 1294 224 2313 253 . 499 3551 345 1087 330 . . . . 305 1142 . . 345 Guns 5949 | . . 146 1218 233 . 489 2398 . 918 161 . . . . 20 280 . . 86 Cannons 2953 | . 1287 78 989 20 . . 393 . . . . . . . . . . . 186 Explosions 2695 | . . . 105 . . . 760 345 169 169 . . . . 285 862 . . . Melee 73 | . . . . . . . . . . . . . . . . . . . 73 Ramming 18 | . 7 . 1 . . 10 . . . . . . . . . . . . . Kinetic 3983 | . 1222 201 1196 124 . . . . 652 161 . . . . 20 280 . . 127 Thermal 4943 | . 65 23 1011 129 . 489 2791 . 435 . . . . . . . . . . Explosive 2526 | . . . 105 . . . 760 345 . 169 . . . . 285 862 . . . Electromagnetic 145 | . . . . . . . . . . . . . . . . . . . 145 Impact . | . . . . . . . . . . . . . . . . . . . . Slashing . | . . . . . . . . . . . . . . . . . . . . Piercing 73 | . . . . . . . . . . . . . . . . . . . 73 Highest Corruption 2 | . . . . . . . . . 2 2 . . . . . . . . . Average Corruption 1 | . . . . . . . . . 1 2 . . . . . . . . . Corruption Purged . | . . . . . . . . . . . . . . . . . . . . Effects 1 | . . . . . . . . . . 1 . . . . . . . . . Message Errors 1 | . . . . . . . . . . 1 . . . . . . . . . Overload Shots . | . . . . . . . . . . . . . . . . . . . . Overflow Damage 66 | . 10 3 1 . . . 20 . 28 . . . . . . 4 . . . Projectiles 32 | . 10 3 1 . . . 18 . . . . . . . . . . . . Explosions 34 | . . . . . . . 2 . 28 . . . . . . 4 . . . Melee . | . . . . . . . . . . . . . . . . . . . . Knockbacks 18 | . 17 1 . . . . . . . . . . . . . . . . . Impact 1 | . 1 . . . . . . . . . . . . . . . . . . Kinetic 15 | . 14 1 . . . . . . . . . . . . . . . . . Secondary 2 | . 2 . . . . . . . . . . . . . . . . . . Self-Inflicted Damage 234 | . . . . . . . 31 . 147 . . . . . 12 44 . . . Shots 7 | . . . . . . . 1 . 2 . . . . . 1 3 . . . Rammed 5 | . 2 . 2 . . 1 . . . . . . . . . . . . . Targets Rammed 5 | . 2 . 2 . . 1 . . . . . . . . . . . . . Kicked . | . . . . . . . . . . . . . . . . . . . . Crushed . | . . . . . . . . . . . . . . . . . . . . Highest Temperature 366 | . 201 204 279 107 . . 78 . 360 1 46 . . . 8 1 . 12 366 Average Temperature 93 | . 54 91 86 44 . . 23 . 104 1 28 . . . 1 1 . 12 219 Received Heat Transfer 2334 | . 300 108 270 108 . 18 297 9 198 9 . 45 . . 27 60 6 54 825 Effects 7 | . . . . . . . . . 1 . . . . . . . . . 6 Shutdowns 3 | . . . . . . . . . . . . . . . . . . . 3 Energy Bleed 3 | . . . . . . . . . . . . . . . . . . . 3 Interference 1 | . . . . . . . . . 1 . . . . . . . . . . Siege Activations . | . . . . . . . . . . . . . . . . . . . . Robots Corrupted . | . . . . . . . . . . . . . . . . . . . . Combat Hostiles . | . . . . . . . . . . . . . . . . . . . . Parts Fried . | . . . . . . . . . . . . . . . . . . . . Impact Corruptions . | . . . . . . . . . . . . . . . . . . . . Robots Melted . | . . . . . . . . . . . . . . . . . . . . Combat Hostiles . | . . . . . . . . . . . . . . . . . . . . Parts Melted 16 | . . . 2 . . 1 10 . 3 . . . . . . . . . . Heat Transferred 7381 | . 111 37 1768 222 . 629 3774 . 840 . . . . . . . . . . Parts Sabotaged . | . . . . . . . . . . . . . . . . . . . . Parts Stolen . | . . . . . . . . . . . . . . . . . . . . Parts Stripped . | . . . . . . . . . . . . . . . . . . . . Power Chain Reactions . | . . . . . . . . . . . . . . . . . . . . Missiles Intercepted . | . . . . . . . . . . . . . . . . . . . . Alert | -11 -10 -10 -9 -9 -9 -8 -8 -8 -8 -8 -7 -7 -7 -7 -6 -6 -6 -6 -5 ------- Run | Scr Mat Min Mat Min Exi Min Mat Gar Mat Gar Fac Gar Fac Gar Fac Gar Fac Gar Fac Peak Influence 682 | . 242 169 682 317 . 103 631 467 413 366 191 163 145 101 309 375 201 300 195 Initial 391 | . . 69 12 247 . . 39 391 227 179 191 133 85 101 52 76 186 140 165 Average 219 | . 101 50 304 154 . 65 468 428 255 284 191 137 111 101 128 322 197 153 125 Maximum Alert Level 2 | . 1 . 2 1 . . 2 2 2 1 . . . . 1 1 1 1 . Low Security (%) 56 | 100 86 100 42 64 . 100 6 . 7 41 100 100 100 100 89 11 22 87 100 Level 1 25 | . 13 . 20 35 . . 14 50 92 58 . . . . 10 88 77 12 . Level 2 18 | . . . 36 . . . 78 49 . . . . . . . . . . . Level 3 . | . . . . . . . . . . . . . . . . . . . . Level 4 . | . . . . . . . . . . . . . . . . . . . . Level 5 . | . . . . . . . . . . . . . . . . . . . . High Security . | . . . . . . . . . . . . . . . . . . . . Max Security . | . . . . . . . . . . . . . . . . . . . . Squads Dispatched 22 | . 4 . 6 . . . 5 . 2 . . . 1 . 3 . . . 1 Investigation 10 | . 3 . 3 . . . 1 . . . . . 1 . 2 . . . . Extermination . | . . . . . . . . . . . . . . . . . . . . Reinforcement 10 | . 1 . 2 . . . 4 . 2 . . . . . . . . . 1 Assault 1 | . . . 1 . . . . . . . . . . . . . . . . Garrison 1 | . . . . . . . . . . . . . . . 1 . . . . Intercept . | . . . . . . . . . . . . . . . . . . . . Construction Impeded 2 | . . . . . . . 2 . . . . . . . . . . . . Haulers Reinforced . | . . . . . . . . . . . . . . . . . . . . Active Scanning Responses . | . . . . . . . . . . . . . . . . . . . . Cargo Convoy Interrupts . | . . . . . . . . . . . . . . . . . . . . Stealth | -11 -10 -10 -9 -9 -9 -8 -8 -8 -8 -8 -7 -7 -7 -7 -6 -6 -6 -6 -5 --------- Run | Scr Mat Min Mat Min Exi Min Mat Gar Mat Gar Fac Gar Fac Gar Fac Gar Fac Gar Fac Distress Signals 11 | . 1 . 5 . . . 2 . 2 . . . 1 . . . . . . Communications Jammed . | . . . . . . . . . . . . . . . . . . . . Distress Signals . | . . . . . . . . . . . . . . . . . . . . Times Spotted 271 | . 32 7 58 3 . 4 42 3 21 6 . 13 4 . 12 14 1 22 29 Peak Tracking Total 20 | . 5 3 6 2 . 3 4 3 4 4 . 14 4 . 5 7 1 13 20 Tactical Retreats 10 | . . . 2 . . . . . 1 . . . 1 . . . . 3 3 Traps | -11 -10 -10 -9 -9 -9 -8 -8 -8 -8 -8 -7 -7 -7 -7 -6 -6 -6 -6 -5 ------- Run | Scr Mat Min Mat Min Exi Min Mat Gar Mat Gar Fac Gar Fac Gar Fac Gar Fac Gar Fac Traps Triggered 41 | . 2 . 2 . . . 2 1 2 6 . 2 . 5 3 7 . 6 3 Indirectly . | . . . . . . . . . . . . . . . . . . . . Trap Hack Attempts . | . . . . . . . . . . . . . . . . . . . . Triggered . | . . . . . . . . . . . . . . . . . . . . Disarmed . | . . . . . . . . . . . . . . . . . . . . Reprogrammed . | . . . . . . . . . . . . . . . . . . . . Reused 1 | . . . . 1 . . . . . . . . . . . . . . . Traps Extracted . | . . . . . . . . . . . . . . . . . . . . Installed 2 | . . . . 1 . . . . 1 . . . . . . . . . . Triggered . | . . . . . . . . . . . . . . . . . . . . Machines | -11 -10 -10 -9 -9 -9 -8 -8 -8 -8 -8 -7 -7 -7 -7 -6 -6 -6 -6 -5 ---------- Run | Scr Mat Min Mat Min Exi Min Mat Gar Mat Gar Fac Gar Fac Gar Fac Gar Fac Gar Fac Machines Disabled 15 | . 3 . 2 . . . 1 . 5 . . . . . 3 1 . . . Max in Single Turn 2 | . 1 . 1 . . . 1 . 2 . . . . . 2 1 . . . Machines Sabotaged . | . . . . . . . . . . . . . . . . . . . . Garrisons Compromised . | . . . . . . . . . . . . . . . . . . . . Overloaded Fab Kills . | . . . . . . . . . . . . . . . . . . . . Hacking | -11 -10 -10 -9 -9 -9 -8 -8 -8 -8 -8 -7 -7 -7 -7 -6 -6 -6 -6 -5 --------- Run | Scr Mat Min Mat Min Exi Min Mat Gar Mat Gar Fac Gar Fac Gar Fac Gar Fac Gar Fac Machines Accessed 44 | . 9 . 9 . 2 . 8 . 5 . 1 . 2 . 7 . 1 . . Terminals 28 | . 7 . 5 . . . 5 . 4 . . . 1 . 6 . . . . Fabricators . | . . . . . . . . . . . . . . . . . . . . Repair Stations 1 | . . . 1 . . . . . . . . . . . . . . . . Recycling Units 4 | . 2 . 1 . . . 1 . . . . . . . . . . . . Scanalyzers 3 | . . . 2 . . . 1 . . . . . . . . . . . . Garrison Access 6 | . . . . . . . 1 . 1 . 1 . 1 . 1 . 1 . . Total Hacks 101 | . 17 . 31 . 10 . 19 . 7 . 1 . 4 . 11 . 1 . . Successful 62 | . 8 . 19 . 10 . 13 . 3 . 1 . 1 . 6 . 1 . . Failed 37 | . 9 . 11 . . . 5 . 4 . . . 3 . 5 . . . . Catastrophic 9 | . 1 . . . . . 1 . 2 . . . 1 . 4 . . . . Database Lockouts 2 | . . . 1 . . . 1 . . . . . . . . . . . . Manual 40 | . 12 . 11 . 1 . 5 . 5 . . . 3 . 3 . . . . Terminals 60 | . 13 . 15 . . . 13 . 6 . . . 3 . 10 . . . . Fabricators . | . . . . . . . . . . . . . . . . . . . . Repair Stations 7 | . . . 7 . . . . . . . . . . . . . . . . Recycling Units 9 | . 4 . 2 . . . 3 . . . . . . . . . . . . Scanalyzers 9 | . . . 7 . . . 2 . . . . . . . . . . . . Garrison Access 6 | . . . . . . . 1 . 1 . 1 . 1 . 1 . 1 . . Terminal Hacks 34 | . 6 . 4 . 10 . 8 . 2 . . . . . 4 . . . . Record 12 | . . . . . 9 . 3 . . . . . . . . . . . . Robot Analysis 5 | . 3 . 1 . . . 1 . . . . . . . . . . . . Prototype ID Bank 5 | . 1 . 2 . . . . . 1 . . . . . 1 . . . . Open DSF 1 | . . . . . . . . . . . . . . . 1 . . . . Terminal Index 1 | . . . . . . . . . . . . . . . 1 . . . . Garrison Index 2 | . . . . . . . 1 . 1 . . . . . . . . . . Alert Level 1 | . . . . . . . 1 . . . . . . . . . . . . Locate Traps 1 | . 1 . . . . . . . . . . . . . . . . . . Registered Components 1 | . . . . . . . 1 . . . . . . . . . . . . Zone Layout 4 | . 1 . 1 . . . 1 . . . . . . . 1 . . . . EX-Prototype ID Bank 1 | . . . . . 1 . . . . . . . . . . . . . . Fabricator Hacks . | . . . . . . . . . . . . . . . . . . . . Repair Station Hacks 6 | . . . 6 . . . . . . . . . . . . . . . . Scan Component 3 | . . . 3 . . . . . . . . . . . . . . . . Repair 3 | . . . 3 . . . . . . . . . . . . . . . . Recycling Unit Hacks 4 | . 1 . 1 . . . 2 . . . . . . . . . . . . Retrieve Components 4 | . 1 . 1 . . . 2 . . . . . . . . . . . . Scanalyzer 7 | . . . 6 . . . 1 . . . . . . . . . . . . Insert Component 4 | . . . 3 . . . 1 . . . . . . . . . . . . Analyze 3 | . . . 3 . . . . . . . . . . . . . . . . Garrison Access Hacks 6 | . . . . . . . 1 . 1 . 1 . 1 . 1 . 1 . . Unlock Access 6 | . . . . . . . 1 . 1 . 1 . 1 . 1 . 1 . . Unauthorized Hacks 5 | . 1 . 2 . . . 1 . . . . . . . 1 . . . . Terminals 2 | . . . 1 . . . . . . . . . . . 1 . . . . Assimilate 1 | . . . . . . . . . . . . . . . 1 . . . . Disrupt 1 | . . . 1 . . . . . . . . . . . . . . . . Fabricators . | . . . . . . . . . . . . . . . . . . . . Repair Stations . | . . . . . . . . . . . . . . . . . . . . Recycling Units 3 | . 1 . 1 . . . 1 . . . . . . . . . . . . Reject 3 | . 1 . 1 . . . 1 . . . . . . . . . . . . Scanalyzers . | . . . . . . . . . . . . . . . . . . . . Garrison Access . | . . . . . . . . . . . . . . . . . . . . Data Cores Recovered 1 | . . . 1 . . . . . . . . . . . . . . . . Used . | . . . . . . . . . . . . . . . . . . . . Hacking Detections 30 | . 7 . 6 . . . 5 . 3 . 1 . 2 . 5 . 1 . . Full Trace Events 6 | . 1 . 1 . . . 1 . . . . . 1 . 2 . . . . Feedback Events . | . . . . . . . . . . . . . . . . . . . . Feedback Blocked . | . . . . . . . . . . . . . . . . . . . . Robot Schematics Acquired 1 | . . . . . . . . . . . . . . . . . . . 1 Robots Built . | . . . . . . . . . . . . . . . . . . . . Authchips . | . . . . . . . . . . . . . . . . . . . . Time . | . . . . . . . . . . . . . . . . . . . . Total Robot Build Rating . | . . . . . . . . . . . . . . . . . . . . Part Schematics Acquired 4 | . . . 3 . . . . . . . . . . . . . . . 1 Parts Built . | . . . . . . . . . . . . . . . . . . . . Authchips . | . . . . . . . . . . . . . . . . . . . . Time . | . . . . . . . . . . . . . . . . . . . . Total Part Build Rating . | . . . . . . . . . . . . . . . . . . . . Parts Repaired 3 | . . . 3 . . . . . . . . . . . . . . . . Time 96 | . . . 96 . . . . . . . . . . . . . . . . Parts Recycled . | . . . . . . . . . . . . . . . . . . . . Recycled Matter . | . . . . . . . . . . . . . . . . . . . . Retrieved Matter . | . . . . . . . . . . . . . . . . . . . . Retrieved Components 21 | . 2 . 9 . . . 10 . . . . . . . . . . . . Parts Scanalyzed 4 | . . . 3 . . . 1 . . . . . . . . . . . . Part Schematics Acquired 3 | . . . 3 . . . . . . . . . . . . . . . . Parts Damaged 1 | . . . 1 . . . . . . . . . . . . . . . . Bothacking | -11 -10 -10 -9 -9 -9 -8 -8 -8 -8 -8 -7 -7 -7 -7 -6 -6 -6 -6 -5 ------------ Run | Scr Mat Min Mat Min Exi Min Mat Gar Mat Gar Fac Gar Fac Gar Fac Gar Fac Gar Fac Used RIF Installer 6 | . . . . . . . . 1 . 1 . 1 . 1 . 1 . 1 . Hotswap 1 | . . . . . . . . . . . . . . . . 1 . . . Command Fork 1 | . . . . . . . . . . 1 . . . . . . . . . Zone Cloak 1 | . . . . . . . . . . . . . . 1 . . . . . Alert ID Control 1 | . . . . . . . . . . . . 1 . . . . . . . Program Shield 1 | . . . . . . . . . . . . . . . . . . 1 . Robots Hacked . | . . . . . . . . . . . . . . . . . . . . Non-combat . | . . . . . . . . . . . . . . . . . . . . Combat . | . . . . . . . . . . . . . . . . . . . . Robot Hacks Applied . | . . . . . . . . . . . . . . . . . . . . Relay Couplers Released . | . . . . . . . . . . . . . . . . . . . . Attached 1 | . . . . . . . . . . . 1 . . . . . . . . Fabnet Peak Effective % . | . . . . . . . . . . . . . . . . . . . . Robots Rewired . | . . . . . . . . . . . . . . . . . . . . Allies Hacked . | . . . . . . . . . . . . . . . . . . . . Hacks Repelled . | . . . . . . . . . . . . . . . . . . . . Allies | -11 -10 -10 -9 -9 -9 -8 -8 -8 -8 -8 -7 -7 -7 -7 -6 -6 -6 -6 -5 -------- Run | Scr Mat Min Mat Min Exi Min Mat Gar Mat Gar Fac Gar Fac Gar Fac Gar Fac Gar Fac Total Allies 8 | . . 5 . . . . . . . . . . . . 3 . . . . Largest Group 5 | . . 5 5 . . . . . . . . . . . 3 . . . . Highest-Rated Group 93 | . . 79 79 . . . . . . . . . . . 93 . . . . Highest-Rated Ally 31 | . . 31 31 . . . . . . . . . . . 31 . . . . Total Orders . | . . . . . . . . . . . . . . . . . . . . Ally Attacks 63 | . . 1 46 . . . . . . . . . . . 16 . . . . Total Damage 859 | . . 17 590 . . . . . . . . . . . 252 . . . . Kills 14 | . . 1 12 . . . . . . . . . . . 1 . . . . Allies Corrupted . | . . . . . . . . . . . . . . . . . . . . Allies Melted . | . . . . . . . . . . . . . . . . . . . . Intel | -11 -10 -10 -9 -9 -9 -8 -8 -8 -8 -8 -7 -7 -7 -7 -6 -6 -6 -6 -5 ------- Run | Scr Mat Min Mat Min Exi Min Mat Gar Mat Gar Fac Gar Fac Gar Fac Gar Fac Gar Fac Robot Analysis Total 5 | . 3 . 1 . . . 1 . . . . . . . . . . . . Derelict Logs Recovered 2 | . . 1 . 1 . . . . . . . . . . . . . . . Drone Launches . | . . . . . . . . . . . . . . . . . . . . Drone Recoveries . | . . . . . . . . . . . . . . . . . . . . Exploration | -11 -10 -10 -9 -9 -9 -8 -8 -8 -8 -8 -7 -7 -7 -7 -6 -6 -6 -6 -5 ------------- Run | Scr Mat Min Mat Min Exi Min Mat Gar Mat Gar Fac Gar Fac Gar Fac Gar Fac Gar Fac Turns Passed 13930 | 76 2099 1429 2504 1131 866 351 1721 235 1372 257 38 100 88 110 402 223 27 180 721 Spaces Moved 8081 | 49 786 568 862 459 360 146 792 112 564 101 54 180 182 75 1060 319 41 341 1030 Core 23 | 21 . . . . . . . . . . . . . . . . . . 2 Treads 3217 | 28 786 568 862 459 360 146 . 8 . . . . . . . . . . . Legs . | . . . . . . . . . . . . . . . . . . . . Wheels 1561 | . . . . . . . 792 104 564 101 . . . . . . . . . Hover 941 | . . . . . . . . . . . . . . . . . . . 941 Flight 2339 | . . . . . . . . . . . 54 180 182 75 1060 319 41 341 87 Fastest Speed 23 | 50 160 240 240 240 240 240 145 190 190 190 27 27 27 27 23 23 30 23 29 Average Speed 145 | 125 239 240 240 240 240 240 185 200 190 190 27 27 27 27 23 23 30 29 55 Slowest Speed 330 | 160 240 240 320 240 240 240 190 330 190 190 27 27 27 27 27 30 30 32 300 Overloaded Moves . | . . . . . . . . . . . . . . . . . . . . Propulsion Burnouts . | . . . . . . . . . . . . . . . . . . . . Robots Hopped 11 | . . . . . . . . . . . . . 2 . 5 . . 4 . Cave-ins Triggered . | . . . . . . . . . . . . . . . . . . . . Exploration Rate (%) 49 | 5 97 96 70 91 70 25 77 42 48 41 . 44 7 26 26 68 1 73 26 Regions Visited 19 Branch Regions 4 Pre-discovered Areas 2 | . . 1 . 1 . . . . . . . . . . . . . . . Known Exits Taken 6 | . . . . . . . 1 . 1 . 1 . 1 . 1 . 1 . . Unknown Exits Taken 7 | 1 1 1 1 1 1 1 . . . . . . . . . . . . . Scrap Searched 2 | . . 1 . 1 . . . . . . . . . . . . . . . Spaces Dug 60 | . . . . . . . 25 . . . . . . . . 35 . . . Terrain Destroyed 212 | . . . 7 . . 3 101 8 38 7 . . . . 1 45 . . 2 Melee . | . . . . . . . . . . . . . . . . . . . . Projectile 18 | . . . . . . 3 13 . . . . . . . . . . . 2 AOE 194 | . . . 7 . . . 88 8 38 7 . . . . 1 45 . . . Terrain Rammed . | . . . . . . . . . . . . . . . . . . . . Walls Destroyed . | . . . . . . . . . . . . . . . . . . . . Machines Disabled . | . . . . . . . . . . . . . . . . . . . . Actions | -11 -10 -10 -9 -9 -9 -8 -8 -8 -8 -8 -7 -7 -7 -7 -6 -6 -6 -6 -5 --------- Run | Scr Mat Min Mat Min Exi Min Mat Gar Mat Gar Fac Gar Fac Gar Fac Gar Fac Gar Fac Total 9712 | 62 892 610 1136 472 364 146 1000 120 803 156 81 229 218 164 1207 434 54 415 1149 Wait 736 | . 22 4 120 . . . 102 . 180 1 . 12 38 . 109 59 14 10 65 Move 8047 | 48 785 567 861 458 359 145 792 111 564 100 53 179 178 74 1051 318 40 334 1030 Hop 7 | . . . . . . . . . . . . . 2 . 3 . . 2 . Pick Up 84 | 8 17 6 17 1 1 . 15 3 4 . 5 . . . 1 . . . 6 Fast Attach 62 | 4 3 2 9 . 1 . 5 . 6 . 3 . . . 8 . . . 21 Attach 33 | 2 3 1 2 . . . 8 . 3 . 8 . . . 1 1 . 1 3 Detach 9 | . . . 1 . . . 2 . 3 . 2 . . . . . . . 1 Swap 64 | . 3 5 18 2 . . 19 1 4 2 . 2 . . 5 1 . . 2 Drop 96 | . 2 9 27 1 3 . 14 . 10 . 10 . . . 10 1 . . 9 Fire 273 | . 55 16 79 9 . . 43 3 28 5 . . . . 4 22 . . 9 Melee 3 | . . . . . . . . . . . . . . . . . . . 3 Ram . | . . . . . . . . . . . . . . . . . . . . Kick . | . . . . . . . . . . . . . . . . . . . . Crush 5 | . 2 . 2 . . 1 . . . . . . . . . . . . . Escape Stasis 291 | . . . . . . . . 2 . 48 . 36 . 90 15 32 . 68 . Rewire . | . . . . . . . . . . . . . . . . . . . . Trap 2 | . . . . 1 . . . . 1 . . . . . . . . . . Miscellaneous . | . . . . . . . . . . . . . . . . . . . . Route ------- -11/Scrapyard -10/Materials (discovered 4 exits: *Mat x3 / [*Min]) -10/Mines (discovered 2 exits: *Mat x2) -9/Materials (discovered 3 exits: *Mat x2 / [*Min]) -9/Mines (discovered 3 exits: *Mat x2 / *Exi) -9/Exiles (discovered 2 exits: [*Min x2]) -8/Mines -8/Materials (discovered 3 exits: *Fac x2 / Gar) -8/Garrison -8/Materials (discovered 3 exits: *Fac x2 / Gar) -8/Garrison -7/Factory -7/Garrison (discovered 2 exits: *Fac x2) -7/Factory -7/Garrison -6/Factory -6/Garrison (discovered 3 exits: *Fac x3) -6/Factory -6/Garrison (discovered 3 exits: *Fac x3) -5/Factory History --------- Turn | Location | Event 3 | -11/Scrapyard | Discovered new exit (range 16) 77 | -11/Scrapyard | Entered Materials 300 | -10/Materials | Build established: Mutant 530 | -10/Materials | Discovered new exit (range 11) 660 | -10/Materials | Discovered new exit (range 15) 885 | -10/Materials | Discovered new exit (range 10) 1474 | -10/Materials | Discovered new exit (range 5) 2176 | -10/Materials | Entered Mines 2307 | -10/Mines | Assisted by bots powering up and referring to "LRC-V3" 2422 | -10/Mines | Joined a pair of Derelicts in attacking an 0b10 outpost 2683 | -10/Mines | Learned location of Zion (-6) 2724 | -10/Mines | Discovered new exit (range 12) 2745 | -10/Mines | Build established: Scavenger-Mutant 2942 | -10/Mines | Found a hidden stash of uninstalled traps 3388 | -10/Mines | Discovered new exit (range 5) 3605 | -10/Mines | Entered Materials 3605 | -9/Materials | Accompanied by 5 allies 3605 | -9/Materials | Evolved 2 slots: Utility x1, Weapon x1 3610 | -9/Materials | Led the pair of lost Derelicts to an unsafe place 3762 | -9/Materials | Central database locked down 3892 | -9/Materials | Build established: Scavenger-Tank 4400 | -9/Materials | Discovered new exit (range 8) 4977 | -9/Materials | Build established: Tank 5044 | -9/Materials | Discovered new exit (range 12) 5373 | -9/Materials | Repaired Hrd. Light Armor Plating 5406 | -9/Materials | Repaired Cooling System 5443 | -9/Materials | Repaired Imp. Treads 5544 | -9/Materials | Discovered new exit (range 7) 5605 | -9/Materials | First assault squad dispatched 6109 | -9/Materials | Entered Mines 6110 | -9/Mines | Assembled infested the area 6424 | -9/Mines | Build established: Mutant 6461 | -9/Mines | Discovered new exit (range 10) 7093 | -9/Mines | Discovered new exit (range 15) 7230 | -9/Mines | Deemed a non-threat by the Exiles lab entrance 7230 | -9/Mines | Discovered new exit (range 5) 7240 | -9/Mines | Entered Exiles 7274 | -9/Exiles | Discovered new exit (range 15) 7305 | -9/Exiles | Met 8R-AWN 7344 | -9/Exiles | Met EX-HEX 7416 | -9/Exiles | Met EX-BIN 7552 | -9/Exiles | Aligned with FarCom system 7555 | -9/Exiles | Given EX-Vault access code 7636 | -9/Exiles | Opened EX-Vault 7654 | -9/Exiles | Found AWS/Thermal 7715 | -9/Exiles | Warned to stay clear of 0b10 Research branches 7861 | -9/Exiles | Met EX-DEC 8077 | -9/Exiles | Discovered new exit (range 12) 8106 | -9/Exiles | Left Exiles lab with AWS/Thermal 8106 | -9/Exiles | Entered Mines 8265 | -8/Mines | Discovered new exit (range 9) 8457 | -8/Mines | Entered Materials 8457 | -8/Materials | Evolved 2 slots: Propulsion x1, Utility x1 8616 | -8/Materials | Destroyed 9 combat bots 8941 | -8/Materials | Central database locked down 8945 | -8/Materials | Build established: Skirmisher 9050 | -8/Materials | Discovered new exit (range 5) 9972 | -8/Materials | Discovered new exit (range 7) 10178 | -8/Materials | Identified exit to Garrison 10178 | -8/Materials | Entered Garrison 10188 | -8/Garrison | Installed Relay Interface Framework 10293 | -8/Garrison | Triggered checkpoint 10385 | -8/Garrison | Discovered new exit (range 15) 10413 | -8/Garrison | Entered Materials 11282 | -8/Materials | Discovered new exit (range 15) 11672 | -8/Materials | Build established: Tank 11753 | -8/Materials | Discovered new exit (range 15) 11785 | -8/Materials | Identified exit to Garrison 11785 | -8/Materials | Entered Garrison 11892 | -8/Garrison | Triggered checkpoint 11926 | -8/Garrison | Destroyed 8 combat bots 12004 | -8/Garrison | Discovered new exit (range 12) 12035 | -8/Garrison | Expanded RIF knowledge: Command Fork 12042 | -8/Garrison | Entered Factory 12042 | -7/Factory | Evolved 2 slots: Propulsion x2 12073 | -7/Factory | Identified exit to Garrison 12080 | -7/Factory | Entered Garrison 12149 | -7/Garrison | Discovered new exit (range 10) 12160 | -7/Garrison | Triggered checkpoint 12160 | -7/Garrison | Triggered checkpoint 12160 | -7/Garrison | Triggered checkpoint 12174 | -7/Garrison | Discovered new exit (range 14) 12179 | -7/Garrison | Expanded RIF knowledge: Alert ID Control 12180 | -7/Garrison | Entered Factory 12268 | -7/Factory | Identified exit to Garrison 12268 | -7/Factory | Entered Garrison 12332 | -7/Garrison | Triggered checkpoint 12333 | -7/Garrison | Build established: Sprinter 12373 | -7/Garrison | Discovered new exit (range 9) 12377 | -7/Garrison | Expanded RIF knowledge: Zone Cloak 12378 | -7/Garrison | Entered Factory 12378 | -6/Factory | Evolved 2 slots: Power x1, Propulsion x1 12512 | -6/Factory | Allied Derelicts emerged from ambush trap array 12737 | -6/Factory | Garrison activated, responded to threat 12779 | -6/Factory | Identified exit to Garrison 12780 | -6/Factory | Entered Garrison 12794 | -6/Garrison | Triggered checkpoint 12796 | -6/Garrison | Triggered checkpoint 12852 | -6/Garrison | Destroyed 12 combat bots 12882 | -6/Garrison | Discovered new exit (range 13) 12952 | -6/Garrison | Discovered new exit (range 10) 12964 | -6/Garrison | Triggered checkpoint 12990 | -6/Garrison | Discovered new exit (range 8) 13001 | -6/Garrison | Expanded RIF knowledge: Hotswap 13003 | -6/Garrison | Entered Factory 13010 | -6/Factory | Identified exit to Garrison 13030 | -6/Factory | Entered Garrison 13048 | -6/Garrison | Triggered checkpoint 13122 | -6/Garrison | Spotted B-75 Beast 13122 | -6/Garrison | Triggered checkpoint 13124 | -6/Garrison | Triggered checkpoint 13136 | -6/Garrison | Discovered new exit (range 15) 13154 | -6/Garrison | Triggered checkpoint 13161 | -6/Garrison | Lost 6 parts (3n1u2w) 13179 | -6/Garrison | Triggered checkpoint 13184 | -6/Garrison | Discovered new exit (range 10) 13195 | -6/Garrison | Triggered checkpoint 13206 | -6/Garrison | Discovered new exit (range 8) 13209 | -6/Garrison | Expanded RIF knowledge: Program Shield 13210 | -6/Garrison | Entered Factory 13210 | -5/Factory | Evolved 2 slots: Utility x2 13411 | -5/Factory | Spotted B-75 Beast 13544 | -5/Factory | Build established: Mutant 13923 | -5/Factory | Core integrity fell below 50% 13929 | -5/Factory | Core integrity fell below 20% 13931 | -5/Factory | Destroyed by Elf with Beamcaster Last Messages --------------- 13925_ Knocked back. 13925_ Penetrated by HV Slug. 13925_ Acquired 116 matter. 13925_ Penetrated by Slug. 13925_ Slug penetrates Wall. 13926_ Penetrated by HV Slug. 13926_ G-50 Soldier suffers critical hit (Destroy). 13928_ Com. Mass Driver destroyed. 13928_ Extracted schematic archive: Target Analyzer. 13929_ Kinetic Spear destroyed. 13929_ HV Slug penetrates Elf. 13929_ Elf suffers critical hit (Destroy). 13929_ Elf destroyed. 13929_ Target Analyzer destroyed. 13930_ Acquired 22 matter. 13930_ U-05 Engineer builds a Door. 13930_ Penetrated by Slug. 13930_ Penetrated by HV Slug. 13930_ Knocked back. 13930_ Dropped Med. Storage Unit. Map ----- +----------------------------------------------------+ | # """" # """ """ #??????????????? | | # """" # ??????????? | | # """" # """ """ ????????????? | | # """" # """ Y" ??????????? | | # """" + """ """ ?????????? | | # """" # ?????????? | | # # ?????????? | | # ! ####+##########?????????????? | | # # #??????????????? | | # # #??????????????? | | # # """ """ #??????????????? | | # # """ """ ???????????????? | | ######## """ """ #??????????????? | | ???????# #??????????????? | | ???????# """ """ +??????????????? | | ???????# """ """????????????????? | | ???????# """ """ #??????????????? | | ???????# #??????????????? | | ???????# #??????????????? | | ???????# #??????????????? | | ???????#+#############?????????????? | | ???????# ######!%#######+##????????? | | ???????# ##%!s%=!==s s #????????? | | ???????# #[g!!!=![%s% #????????? | | ???????#=#*!=g!ss[!!$ #????????? | | ???????# ##@%$$s%=="""""" #????????? | | ??????## ##!!!!s$g!"""""???????????? | | ??????# !u$$!!gg%="""""???????????? | | ??????# !#!""""!%%""""????????????? | | ??????# +]= == ???????????? | | ??????# #########+#####??????????? | | ??????# #???????? ??????????????? | | ?????# ?????????""?????????????? | | ?????# ????????? ????????????? | | ?????# ??????????" ???????????? | | ?????# #?????????? ???????????? | | ?????# #???????????????????????? | | ?????### ###???????????????????????? | | ???????# ??????????????????????????? | | ???????# ??????????????????????????? | | ???????? ????????s?????????????????? | | ???????? ??????????????????????????? | | ???????? ??????????????????????????? | | ???????????????????????????????????? | | ???????????????????????????????????? | | ???????????????????????????????????? | | ???????????????????????????????????? | | ???????????????????????????????????? | | ???????????????????????????????????? | | ???????????????????????????????????? | +----------------------------------------------------+ Best States ------------- Heat Dissipation 56 Coolant Potential 120 Energy Generation 31 Energy Capacity 570 Matter Stores 300 Matter Capacity 300 Sight Range 16 Terrain Scan Density 10 Armor Coverage 300 Resistance: KI 25 Resistance: EM 15 Propulsion Shielding 66 Evasion (%) 71 Melee Accuracy 5 Target Analysis 5 Core Analysis 8 Recoil Reduction 2 Matter Filtering 50 Offensive Hacking 20 Defensive Hacking 10 Relay Coupler Types 1 Relay Coupler Value 40 Item Schematics ----------------- Transport Network Coupler | -9/Materials | Scanalyzed VTOL Module | -9/Materials | Scanalyzed Beamcaster | -9/Materials | Scanalyzed Target Analyzer | -5/Factory | Archive Robot Schematics ------------------ K-01 Serf | -5/Factory | Archive Fabricated ------------ Nothing Alien Tech Used ----------------- None Achievements -------------- None Challenges ------------ None Game ------ Seed ChipEnergyTriangulator Manual? 0 Play Time 01:30:21 Cumulative 1122.1 hours Start 2021.12.25 @ 03:14:06 End 2021.12.25 @ 04:49:50 Sessions 1 Manual Loads 0 Difficulty Rogue Special Mode Winter2021/Sauler Game No. 722 Rogue 709 Adventurer 5 Explorer 8 Win Type - Total 19 Types 10/1/4/4/0/0/0/0/0 Lore% 87 Gallery% 91 Achievement% 81 Wizard Run 0 Options --------- ASCII 0 Keyboard 0 Movement Mouse Keybinds 0 Fullscreen 1 Font 24/Crisp Map View 76x50 Tactical HUD 1 Map Filters NONE Filters NONE Steam 1 RUN: 6deef563-a4cf-4464-9546-d3373eb5a895